fUSD/lending_fUSD_20250513
["ID","MTS","AMOUNT","RATE_DAILY","PERIOD"]
[360981180,1747179042184,-953.67,0.00010959,2]
[360981181,1747179042195,-373.28817701,0.00010959,2]
[360981182,1747179042204,-400.0,0.00010959,2]
[360981183,1747179042213,-400.0,0.00010959,2]
[360981184,1747179042222,-400.0,0.00010959,2]
[360981185,1747179042233,-400.0,0.00010959,2]
[360981186,1747179042242,-400.0,0.00010959,2]
[360981187,1747179042252,-570.18,0.00010959,2]
[360981188,1747179042266,-400.0,0.00010959,2]
[360981189,1747179042276,-1368.27,0.00010959,2]
[360981190,1747179042286,-439.28,0.00010959,2]
[360981191,1747179042295,-597.47,0.00010959,2]
[360981192,1747179042305,-400.0,0.00010959,2]
[360981193,1747179042315,-975.19,0.00010959,2]
[360981194,1747179042325,-632.23,0.00010959,2]
[360981195,1747179042335,-400.0,0.00010959,2]
[360981196,1747179042344,-400.0,0.00010959,2]
[360981197,1747179042354,-576.05,0.00010959,2]
[360981198,1747179042364,-400.0,0.00010959,2]
[360981199,1747179042374,-589.19,0.00010959,2]
[360981200,1747179042383,-1173.99,0.00010959,2]
[360981201,1747179042393,-400.0,0.00010959,2]
[360981202,1747179042403,-1548.26,0.00010959,2]
[360981203,1747179042412,-448.1,0.00010959,2]
[360981204,1747179042422,-535.05,0.00010959,2]
[360981205,1747179042431,-660.65,0.00010959,2]
[360981206,1747179042440,-1216.07,0.00010959,2]
[360981207,1747179042450,-6681.55,0.00010959,2]
[360981208,1747179042460,-400.0,0.00010959,2]
[360981209,1747179042469,-870.84,0.00010959,2]
[360981210,1747179042479,-400.0,0.00010959,2]
[360981211,1747179042488,-400.0,0.00010959,2]
[360981212,1747179042497,-1858.77,0.00010959,2]
[360981213,1747179042509,-945.43,0.00010959,2]
[360981214,1747179042518,-790.1,0.00010959,2]
[360981216,1747179042527,-953.93,0.00010959,2]
[360981217,1747179042537,-400.0,0.00010959,2]
[360981218,1747179042547,-690.58,0.00010959,2]
[360981219,1747179042557,-1586.29,0.00010959,2]
[360981220,1747179042566,-412.92,0.00010959,2]
[360981221,1747179042575,-400.0,0.00010959,2]
[360981222,1747179042584,-510.48,0.00010959,2]
[360981223,1747179042594,-400.0,0.00010959,2]
[360981224,1747179042603,-400.0,0.00010959,2]
[360981225,1747179042613,-932.81,0.00010959,2]
[360981226,1747179042622,-4117.5,0.00010959,2]
[360981227,1747179042632,-400.0,0.00010959,2]
[360981228,1747179042641,-1952.76,0.00010959,2]
[360981229,1747179042650,-400.0,0.00010959,2]
[360981230,1747179042660,-471.24,0.00010959,2]
[360981231,1747179042669,-2541.36,0.00010959,2]
[360981232,1747179042679,-1348.96,0.00010959,2]
[360981233,1747179042688,-400.0,0.00010959,2]
[360981234,1747179042698,-1971.6,0.00010959,2]
[360981235,1747179042708,-400.0,0.00010959,2]
[360981236,1747179042718,-861.11,0.00010959,2]
[360981237,1747179042727,-434.82,0.00010959,2]
[360981238,1747179042737,-400.0,0.00010959,2]
[360981239,1747179042746,-820.94,0.00010959,2]
[360981240,1747179042756,-611.1,0.00010959,2]
[360981241,1747179042765,-400.0,0.00010959,2]
[360981242,1747179042775,-400.0,0.00010959,2]
[360981243,1747179042784,-400.0,0.00010959,2]
[360981244,1747179042793,-400.0,0.00010959,2]
[360981245,1747179042802,-891.83,0.00010959,2]
[360981246,1747179042812,-1732.78,0.00010959,2]
[360981247,1747179042821,-400.0,0.00010959,2]
[360981248,1747179042832,-1176.67,0.00010959,2]
[360981249,1747179042841,-1333.84,0.00010959,2]
[360981250,1747179042850,-783.28,0.00010959,2]
[360981251,1747179042859,-402.69,0.00010959,2]
[360981252,1747179042869,-590.71,0.00010959,2]
[360981253,1747179042878,-400.0,0.00010959,2]
[360981254,1747179042888,-400.0,0.00010959,2]
[360981255,1747179042898,-707.09,0.00010959,2]
[360981256,1747179042907,-400.0,0.00010959,2]
[360981257,1747179042916,-3659.65,0.00010959,2]
[360981258,1747179042926,-529.51,0.00010959,2]
[360981259,1747179042935,-400.0,0.00010959,2]
[360981260,1747179042944,-400.0,0.00010959,2]
[360981261,1747179042953,-609.05,0.00010959,2]
[360981262,1747179042963,-400.0,0.00010959,2]
[360981263,1747179042972,-400.0,0.00010959,2]
[360981264,1747179042982,-400.0,0.00010959,2]
[360981265,1747179042992,-400.0,0.00010959,2]
[360981266,1747179043003,-400.0,0.00010959,2]
[360981267,1747179043013,-1476.3,0.00010959,2]
[360981268,1747179043023,-1263.69,0.00010959,2]
[360981269,1747179043032,-400.0,0.00010959,2]
[360981270,1747179043041,-1746.18,0.00010959,2]
[360981271,1747179043050,-400.0,0.00010959,2]
[360981272,1747179043061,-4439.46,0.00010959,2]
[360981273,1747179043071,-400.0,0.00010959,2]
[360981274,1747179043082,-451.39,0.00010959,2]
[360981275,1747179043094,-531.59,0.00010959,2]
[360981276,1747179043103,-723.86,0.00010959,2]
[360981277,1747179043113,-400.0,0.00010959,2]
[360981279,1747179043121,-400.0,0.00010959,2]
[360981280,1747179043130,-400.0,0.00010959,2]
[360981281,1747179043139,-400.0,0.00010959,2]
[360981283,1747179043149,-400.0,0.00010959,2]
[360981284,1747179043162,-529.76,0.00010959,2]
[360981285,1747179043171,-400.0,0.00010959,2]
[360981286,1747179043180,-614.24,0.00010959,2]
[360981287,1747179043189,-807.28,0.00010959,2]
[360981288,1747179043199,-404.56,0.00010959,2]
[360981289,1747179043209,-400.0,0.00010959,2]
[360981290,1747179043218,-400.0,0.00010959,2]
[360981291,1747179043227,-500.0,0.00010959,2]
[360981292,1747179043237,-804.64,0.00010959,2]
[360981293,1747179043247,-400.0,0.00010959,2]
[360981294,1747179043256,-400.0,0.00010959,2]
[360981295,1747179043266,-400.0,0.00010959,2]
[360981296,1747179043275,-400.0,0.00010959,2]
[360981297,1747179043284,-400.0,0.00010959,2]
[360981298,1747179043293,-1513.74,0.00010959,2]
[360981299,1747179043302,-400.0,0.00010959,2]
[360981300,1747179043311,-400.0,0.00010959,2]
[360981301,1747179043320,-405.34,0.00010959,2]
[360981302,1747179043330,-400.0,0.00010959,2]
[360981303,1747179043340,-1060.73,0.00010959,2]
[360981304,1747179043349,-776.54,0.00010959,2]
[360981305,1747179043358,-1165.96,0.00010959,2]
[360981306,1747179043368,-400.0,0.00010959,2]
[360981307,1747179043378,-400.0,0.00010959,2]
[360981308,1747179043388,-564.33,0.00010959,2]
[360981309,1747179043398,-532.62,0.00010959,2]
[360981310,1747179043409,-400.0,0.00010959,2]
[360981311,1747179043419,-400.0,0.00010959,2]
[360981312,1747179043430,-448.79,0.00010959,2]
[360981313,1747179043439,-400.0,0.00010959,2]
[360981314,1747179043449,-886.83,0.00010959,2]
[360981315,1747179043458,-400.0,0.00010959,2]
[360981316,1747179043467,-573.13,0.00010959,2]
[360981317,1747179043476,-400.0,0.0001096,2]
[360981318,1747179043486,-400.0,0.0001096,2]
[360981319,1747179043495,-400.0,0.0001096,2]
[360981320,1747179043505,-400.0,0.0001096,2]
[360981321,1747179043517,-400.0,0.0001096,2]
[360981322,1747179043527,-400.0,0.0001096,2]
[360981323,1747179043536,-400.0,0.0001096,2]
[360981324,1747179043545,-400.0,0.0001096,2]
[360981325,1747179043556,-400.0,0.0001096,2]
[360981326,1747179043567,-586.24,0.0001096,2]
[360981327,1747179043578,-400.0,0.0001096,2]
[360981328,1747179043588,-400.0,0.0001096,2]
[360981329,1747179043599,-400.0,0.0001096,2]
[360981330,1747179043610,-400.0,0.0001096,2]
[360981331,1747179043621,-400.0,0.0001096,2]
[360981332,1747179043632,-410.67,0.0001096,2]
[360981333,1747179043641,-400.0,0.0001096,2]
[360981334,1747179043652,-400.0,0.0001096,2]
[360981335,1747179043661,-400.0,0.0001096,2]
[360981336,1747179043671,-521.08,0.0001096,2]
[360981337,1747179043680,-400.0,0.0001096,2]
[360981338,1747179043690,-557.06,0.0001096,2]
[360981339,1747179043699,-438.28,0.0001096,2]
[360981340,1747179043709,-400.0,0.0001096,2]
[360981341,1747179043719,-400.0,0.0001096,2]
[360981342,1747179043729,-400.0,0.0001096,2]
[360981343,1747179043739,-400.0,0.0001096,2]
[360981344,1747179043748,-1309.25,0.0001096,2]
[360981345,1747179043758,-400.0,0.0001096,2]
[360981346,1747179043767,-400.0,0.0001096,2]
[360981347,1747179043776,-400.0,0.0001096,2]
[360981348,1747179043785,-428.44,0.0001096,2]
[360981349,1747179043796,-295.47500337,0.0001096,2]
[360981350,1747179043806,-431.42,0.0001096,2]
[360981351,1747179043815,-574.08,0.0001096,2]
[360981352,1747179043825,-1706.3,0.0001096,2]
[360981353,1747179043836,-400.0,0.0001096,2]
[360981354,1747179043846,-400.0,0.0001096,2]
[360981355,1747179043856,-400.0,0.0001096,2]
[360981356,1747179043865,-1035.66,0.0001096,2]
[360981357,1747179043875,-400.0,0.0001096,2]
[360981358,1747179043886,-525.64,0.0001096,2]
[360981359,1747179043897,-400.0,0.0001096,2]
[360981360,1747179043906,-400.0,0.0001096,2]
[360981361,1747179043918,-687.97,0.0001096,2]
[360981362,1747179043927,-400.0,0.0001096,2]
[360981363,1747179043937,-400.0,0.0001096,2]
[360981364,1747179043946,-400.0,0.0001096,2]
[360981365,1747179043956,-400.0,0.0001096,2]
[360981366,1747179043966,-400.0,0.0001096,2]
[360981367,1747179043975,-864.16,0.0001096,2]
[360981368,1747179043986,-400.0,0.0001096,2]
[360981369,1747179043996,-400.0,0.0001096,2]
[360981370,1747179044006,-400.0,0.0001096,2]
[360981371,1747179044017,-400.0,0.0001096,2]
[360981372,1747179044027,-400.0,0.0001096,2]
[360981373,1747179044037,-400.0,0.0001096,2]
[360981374,1747179044047,-400.0,0.0001096,2]
[360981375,1747179044057,-400.0,0.0001096,2]
[360981376,1747179044067,-400.0,0.0001096,2]
[360981377,1747179044078,-436.81,0.0001096,2]
[360981378,1747179044089,-400.0,0.0001096,2]
[360981379,1747179044247,-400.0,0.0001096,2]
[360981380,1747179044257,-504.86028534,0.0001096,2]
[360981381,1747179044267,-400.0,0.0001096,2]
[360981382,1747179044276,-734.09,0.0001096,2]
[360981383,1747179044286,-372.59670099,0.0001096,2]
[360981384,1747179044295,-400.0,0.0001096,2]
[360981385,1747179044304,-400.0,0.0001096,2]
[360981386,1747179044314,-504.93,0.0001096,2]
[360981387,1747179044324,-400.0,0.0001096,2]
[360981388,1747179044334,-552.21,0.0001096,2]
[360981389,1747179044344,-427.45,0.0001096,2]
[360981390,1747179044353,-400.0,0.0001096,2]
[360981391,1747179044363,-400.0,0.0001096,2]
[360981392,1747179044373,-400.0,0.0001096,2]
[360981393,1747179044382,-400.0,0.0001096,2]
[360981394,1747179044392,-178.76685919,0.0001096,2]
[360981395,1747179044402,-381.44,0.0001096,2]
[360981396,1747179044412,-400.0,0.0001096,2]
[360981397,1747179044423,-469.71,0.0001096,2]
[360981398,1747179044434,-400.0,0.0001096,2]
[360981399,1747179044444,-400.0,0.0001096,2]
[360981400,1747179044453,-400.0,0.0001096,2]
[360981401,1747179044463,-961.76,0.0001096,2]
[360981402,1747179044473,-400.0,0.0001096,2]
[360981403,1747179044482,-400.0,0.0001096,2]
[360981404,1747179044492,-400.0,0.0001096,2]
[360981405,1747179044501,-400.0,0.0001096,2]
[360981406,1747179044512,-502.89,0.0001096,2]
[360981407,1747179044521,-400.0,0.0001096,2]
[360981408,1747179044530,-400.0,0.0001096,2]
[360981409,1747179044540,-400.0,0.0001096,2]
[360981410,1747179044550,-400.0,0.0001096,2]
[360981411,1747179044561,-400.0,0.0001096,2]
[360981412,1747179044570,-400.0,0.0001096,2]
[360981413,1747179044581,-400.0,0.0001096,2]
[360981414,1747179044591,-400.0,0.0001096,2]
[360981415,1747179044600,-400.0,0.0001096,2]
[360981416,1747179044610,-400.0,0.0001096,2]
[360981417,1747179044619,-400.0,0.0001096,2]
[360981418,1747179044628,-400.0,0.0001096,2]
[360981419,1747179044638,-531.5,0.0001096,2]
[360981420,1747179044647,-634.0,0.0001096,2]
[360981421,1747179044657,-400.0,0.0001096,2]
[360981422,1747179044666,-400.0,0.0001096,2]
[360981423,1747179044680,-400.0,0.0001096,2]
[360981424,1747179044690,-423.63,0.0001096,2]
[360981425,1747179044700,-400.0,0.0001096,2]
[360981426,1747179044710,-400.0,0.0001096,2]
[360981427,1747179044720,-952.62,0.0001096,2]
[360981428,1747179044730,-400.0,0.0001096,2]
[360981429,1747179044739,-400.0,0.0001096,2]
[360981430,1747179044749,-400.0,0.0001096,2]
[360981431,1747179044758,-400.0,0.0001096,2]
[360981432,1747179044767,-400.0,0.0001096,2]
[360981433,1747179044777,-400.0,0.0001096,2]
[360981434,1747179044786,-400.0,0.0001096,2]
[360981435,1747179044795,-903.19,0.0001096,2]
[360981436,1747179044806,-400.0,0.0001096,2]
[360981437,1747179044815,-400.0,0.0001096,2]
[360981438,1747179044825,-951.23,0.0001096,2]
[360981439,1747179044834,-400.0,0.0001096,2]
[360981440,1747179044844,-400.0,0.0001096,2]
[360981441,1747179044854,-400.0,0.0001096,2]
[360981442,1747179044864,-659.03,0.0001096,2]
[360981443,1747179044874,-400.0,0.0001096,2]
[360981444,1747179044883,-400.0,0.0001096,2]
[360981445,1747179044893,-400.0,0.0001096,2]
[360981446,1747179044903,-461.51,0.0001096,2]
[360981447,1747179044913,-990.81,0.0001096,2]
[360981448,1747179044922,-400.0,0.0001096,2]
[360981449,1747179044932,-400.0,0.0001096,2]
[360981450,1747179044942,-400.0,0.0001096,2]
[360981451,1747179044951,-400.0,0.0001096,2]
[360981452,1747179044961,-481.35,0.0001096,2]
[360981453,1747179044971,-400.0,0.0001096,2]
[360981454,1747179044980,-568.06,0.0001096,2]
[360981455,1747179044990,-400.0,0.0001096,2]
[360981456,1747179044999,-400.0,0.0001096,2]
[360981457,1747179045009,-400.0,0.0001096,2]
[360981458,1747179045019,-400.0,0.0001096,2]
[360981459,1747179045028,-400.0,0.0001096,2]
[360981460,1747179045037,-400.0,0.0001096,2]
[360981461,1747179045047,-996.7,0.0001096,2]
[360981462,1747179045056,-400.0,0.0001096,2]
[360981463,1747179045066,-400.0,0.0001096,2]
[360981464,1747179045076,-763.5,0.0001096,2]
[360981465,1747179045085,-400.0,0.0001096,2]
[360981466,1747179045095,-1121.64,0.0001096,2]
[360981467,1747179045104,-400.0,0.0001096,2]
[360981468,1747179045114,-400.0,0.0001096,2]
[360981469,1747179045124,-2388.89,0.0001096,2]
[360981470,1747179045134,-400.0,0.0001096,2]
[360981471,1747179045143,-400.0,0.0001096,2]
[360981472,1747179045153,-847.81,0.0001096,2]
[360981473,1747179045164,-400.0,0.0001096,2]
[360981474,1747179045174,-643.2,0.0001096,2]
[360981475,1747179045183,-958.91,0.0001096,2]
[360981476,1747179045192,-2823.46,0.0001096,2]
[360981477,1747179045202,-400.0,0.0001096,2]
[360981478,1747179045211,-175.83556446,0.0001096,2]
[360981479,1747179045221,-400.0,0.0001096,2]
[360981480,1747179045232,-1164.04,0.0001096,2]
[360981481,1747179045242,-416.36,0.0001096,2]
[360981482,1747179045251,-400.0,0.0001096,2]
[360981483,1747179045261,-400.0,0.0001096,2]
[360981484,1747179045271,-12480.74,0.0001096,2]
[360981485,1747179045280,-400.0,0.0001096,2]
[360981486,1747179045290,-400.0,0.0001096,2]
[360981487,1747179045300,-400.0,0.0001096,2]
[360981488,1747179045310,-5308.48,0.0001096,2]
[360981489,1747179045319,-7146.32,0.0001096,2]
[360981490,1747179045329,-400.0,0.0001096,2]
[360981491,1747179045338,-440.69,0.0001096,2]
[360981492,1747179045348,-400.0,0.0001096,2]
[360981493,1747179045358,-2260.8,0.0001096,2]
[360981494,1747179045368,-504.57,0.0001096,2]
[360981495,1747179045378,-613.71,0.0001096,2]
[360981496,1747179045388,-400.0,0.0001096,2]
[360981497,1747179045398,-400.0,0.0001096,2]
[360981498,1747179045407,-400.0,0.0001096,2]
[360981499,1747179045417,-400.0,0.0001096,2]
[360981500,1747179045426,-400.0,0.0001096,2]
[360981501,1747179045437,-400.0,0.0001096,2]
[360981502,1747179045447,-512.91,0.00010961,2]
[360981503,1747179045456,-400.0,0.00010961,2]
[360981504,1747179045466,-500.0,0.00010973,2]
[360981505,1747179045476,-500.0,0.00010973,2]
[360981506,1747179045486,-500.0,0.00010973,2]
[360981507,1747179045495,-500.0,0.00010973,2]
[360981508,1747179045505,-500.0,0.00010973,2]
[360981509,1747179045516,-500.0,0.00010973,2]
[360981510,1747179045526,-500.0,0.00010973,2]
[360981511,1747179045535,-189.85931161,0.00010973,2]
[360981512,1747179045545,-1722.81,0.00010975,2]
[360981513,1747179045555,-1368.0246395,0.00010978,2]
[360981514,1747179045565,-129750.83828112,0.00010992,2]
[360981515,1747179045587,-33370.09039478,0.00010992,2]
[360981516,1747179045600,-45783.44867603,0.00010992,2]
[360981517,1747179045626,-19057.83778057,0.00010992,2]
[360981518,1747179045636,-1476.42282513,0.00010992,2]
[360981530,1747179046556,-1248.36196045,0.00010992,2]
[360981531,1747179046568,-435.67714681,0.00010992,2]
[360981547,1747179047303,-89.17751577,0.00010992,2]
[360981548,1747179047849,-400.0,0.00010959,2]
[360981549,1747179047858,-400.0,0.00010959,2]
[360981550,1747179047868,-4237.85183304,0.00010992,2]
[360981551,1747179047879,-411.2215325,0.00010992,2]
[360981552,1747179047888,-300.0,0.00010999,2]
[360981553,1747179047897,-5720.8495974,0.00011,2]
[360981555,1747179138051,300.0474,9.843e-05,2]
[360981556,1747179206416,1405.04,8.219e-05,2]
[360981558,1747179248061,2313.619733,7.945e-05,2]
[360982166,1747179649508,200.0,9.893e-05,2]
[360982168,1747179778084,461.07,9.857e-05,2]
[360982182,1747180052057,150.0,9.836e-05,7]
[360982183,1747180126378,172.1,7.819e-05,2]
[360982184,1747180149940,246.42,9.77e-05,2]
[360982185,1747180212735,493.79,9.671e-05,2]
[360982208,1747180231906,-200.0,9.945e-05,2]
[360982209,1747180231916,-200.0,9.946e-05,2]
[360982210,1747180231926,-409.15148806,9.947e-05,2]
[360982211,1747180231937,-790.84851194,9.947e-05,2]
[360982212,1747180231948,-300.0,9.947e-05,2]
[360982213,1747180231957,-250.0,9.947e-05,2]
[360982214,1747180231967,-150.0,9.948e-05,2]
[360982215,1747180231976,-150.0,9.948e-05,2]
[360982216,1747180231986,-500.0,9.948e-05,2]
[360982217,1747180231995,-500.0,9.948e-05,2]
[360982218,1747180232004,-500.0,9.948e-05,2]
[360982219,1747180232015,-500.0,9.948e-05,2]
[360982220,1747180232025,-500.0,9.948e-05,2]
[360982221,1747180232035,-500.0,9.948e-05,2]
[360982222,1747180232045,-500.0,9.948e-05,2]
[360982223,1747180232055,-500.0,9.948e-05,2]
[360982224,1747180232065,-500.0,9.948e-05,2]
[360982225,1747180232076,-500.0,9.948e-05,2]
[360982226,1747180232088,-500.0,9.948e-05,2]
[360982227,1747180232097,-500.0,9.948e-05,2]
[360982228,1747180232106,-500.0,9.948e-05,2]
[360982229,1747180232116,-500.0,9.948e-05,2]
[360982230,1747180232127,-500.0,9.948e-05,2]
[360982231,1747180232136,-500.0,9.948e-05,2]
[360982232,1747180232321,-500.0,9.948e-05,2]
[360982233,1747180232336,-500.0,9.948e-05,2]
[360982234,1747180232346,-251.15345098,9.948e-05,2]
[360982235,1747180232356,-500.0,9.948e-05,2]
[360982236,1747180232366,-500.0,9.948e-05,2]
[360982237,1747180232375,-500.0,9.948e-05,2]
[360982238,1747180232385,-500.0,9.948e-05,2]
[360982239,1747180232394,-500.0,9.948e-05,2]
[360982240,1747180232404,-500.0,9.948e-05,2]
[360982241,1747180232414,-500.0,9.948e-05,2]
[360982242,1747180232423,-500.0,9.948e-05,2]
[360982243,1747180232433,-500.0,9.948e-05,2]
[360982244,1747180232442,-500.0,9.948e-05,2]
[360982245,1747180232452,-500.0,9.948e-05,2]
[360982246,1747180232462,-500.0,9.948e-05,2]
[360982247,1747180232471,-500.0,9.948e-05,2]
[360982248,1747180232482,-500.0,9.948e-05,2]
[360982249,1747180232491,-500.0,9.948e-05,2]
[360982250,1747180232501,-500.0,9.948e-05,2]
[360982251,1747180232510,-500.0,9.948e-05,2]
[360982252,1747180232520,-500.0,9.948e-05,2]
[360982253,1747180232529,-500.0,9.948e-05,2]
[360982254,1747180232539,-500.0,9.948e-05,2]
[360982255,1747180232550,-500.0,9.948e-05,2]
[360982256,1747180232561,-500.0,9.948e-05,2]
[360982257,1747180232571,-543.18229815,9.948e-05,2]
[360982258,1747180232580,-500.0,9.948e-05,2]
[360982259,1747180232591,-499.99999999,9.948e-05,2]
[360982260,1747180232601,-200.0,9.949e-05,2]
[360982261,1747180232611,-8323.22,9.952e-05,2]
[360982262,1747180232621,-1124.29,9.959e-05,2]
[360982263,1747180232630,-1000.0,9.968e-05,2]
[360982264,1747180232640,-250.0,9.996e-05,2]
[360982265,1747180232650,-450.0,0.0001,2]
[360982266,1747180232659,-200.51923094,0.0001,2]
[360982267,1747180232669,-900.11,0.00010002,2]
[360982268,1747180232680,-169.13,0.00010191,2]
[360982269,1747180232689,-207.4,0.00010429,2]
[360982270,1747180232699,-1405.04,0.00010482,2]
[360982271,1747180232709,-184.8278,0.00010858,2]
[360982272,1747180232719,-4587.1324,0.00010859,2]
[360982273,1747180232729,-1068.26259005,0.00010859,2]
[360982274,1747180232741,-954.04550995,0.00010859,2]
[360982275,1747180232751,-1000.0,0.00010859,2]
[360982276,1747180232760,-1249.255,0.00010859,2]
[360982277,1747180232769,-2653.2731,0.00010859,2]
[360982278,1747180232779,-597.7043,0.00010859,2]
[360982279,1747180232789,-381.4998,0.00010859,2]
[360982280,1747180232798,-8761.1297,0.00010859,2]
[360982281,1747180232808,-5663.7285,0.00010859,2]
[360982282,1747180232819,-362.5,0.00010859,2]
[360982283,1747180232829,-3839.1775,0.0001086,2]
[360982284,1747180232840,-151.0,0.00010893,2]
[360982285,1747180232849,-156.587,0.00010893,2]
[360982286,1747180232859,-155.0,0.00010893,2]
[360982287,1747180232870,-151.0,0.00010893,2]
[360982288,1747180232879,-668.65185757,0.00010893,2]
[360982289,1747180232889,-287.61899177,0.00010893,2]
[360982290,1747180232899,-164.60625558,0.00010899,2]
[360982291,1747180232909,-442.44029068,0.000109,2]
[360982292,1747180233034,-7492.15820932,0.000109,2]
[360982293,1747180233043,-500.0,0.000109,2]
[360982294,1747180233053,-166.98792648,0.000109,2]
[360982295,1747180233063,-190.78567091,0.000109,2]
[360982296,1747180233073,-250.0,0.00010938,2]
[360982297,1747180233083,-200.0,0.00010938,2]
[360982298,1747180233093,-200.0,0.0001094,2]
[360982299,1747180233103,-1200.0,0.00010942,2]
[360982300,1747180233112,-400.0,0.00010958,2]
[360982301,1747180233122,-400.0,0.00010958,2]
[360982302,1747180233132,-400.0,0.00010958,2]
[360982303,1747180233141,-400.0,0.00010958,2]
[360982304,1747180233150,-400.0,0.00010958,2]
[360982305,1747180233159,-400.0,0.00010958,2]
[360982306,1747180233169,-400.0,0.00010958,2]
[360982307,1747180233178,-400.0,0.00010958,2]
[360982308,1747180233187,-886.83,0.00010958,2]
[360982309,1747180233196,-400.0,0.00010958,2]
[360982310,1747180233205,-400.0,0.00010958,2]
[360982311,1747180233215,-400.0,0.00010958,2]
[360982312,1747180233224,-291.18,0.00010958,2]
[360982313,1747180233234,-400.0,0.00010958,2]
[360982314,1747180233244,-463.81168982,0.00010958,2]
[360982315,1747180233254,-1000.97,0.00010958,2]
[360982316,1747180233263,-990.26,0.00010958,2]
[360982317,1747180233273,-506.1,0.00010958,2]
[360982318,1747180233283,-565.74,0.00010958,2]
[360982319,1747180233292,-455.37,0.00010958,2]
[360982320,1747180233302,-464.12,0.00010958,2]
[360982321,1747180233311,-400.0,0.00010958,2]
[360982322,1747180233321,-400.0,0.00010958,2]
[360982323,1747180233339,-400.0,0.00010958,2]
[360982324,1747180233356,-400.0,0.00010958,2]
[360982325,1747180233372,-1331.684094,0.00010958,2]
[360982326,1747180233388,-808.17,0.00010958,2]
[360982327,1747180233405,-159.144314,0.00010958,2]
[360982328,1747180233418,-412.34,0.00010958,2]
[360982329,1747180233434,-400.0,0.00010958,2]
[360982330,1747180233450,-400.0,0.00010958,2]
[360982331,1747180233468,-304.984101,0.00010958,2]
[360982332,1747180233484,-400.0,0.00010958,2]
[360982333,1747180233502,-652.23,0.00010958,2]
[360982334,1747180233518,-400.0,0.00010958,2]
[360982335,1747180233534,-1809.52,0.00010958,2]
[360982336,1747180233553,-400.0,0.00010958,2]
[360982337,1747180233567,-400.0,0.00010958,2]
[360982338,1747180233579,-856.0,0.00010958,2]
[360982339,1747180233599,-266.336819,0.00010958,2]
[360982340,1747180233611,-400.0,0.00010958,2]
[360982341,1747180233626,-888.48,0.00010958,2]
[360982342,1747180233643,-400.0,0.00010958,2]
[360982343,1747180233655,-400.0,0.00010958,2]
[360982344,1747180233674,-400.0,0.00010958,2]
[360982345,1747180233689,-745.31,0.00010958,2]
[360982346,1747180233704,-1354.26,0.00010958,2]
[360982347,1747180233718,-1146.05,0.00010958,2]
[360982348,1747180233734,-400.0,0.00010958,2]
[360982349,1747180233748,-400.0,0.00010958,2]
[360982350,1747180233762,-400.0,0.00010958,2]
[360982351,1747180233777,-400.0,0.00010958,2]
[360982352,1747180233792,-633.48,0.00010958,2]
[360982353,1747180233805,-698.6,0.00010958,2]